[Event "Titled Tuesday Blitz July 25 Early 2023"]
[White "Smietanska, Wiktoria"]
[Black "Przybylski, Wojciech"]
[WhiteFideId "21869359"]
[BlackFideId "1117599"]
[WhiteElo "2193"]
[BlackElo "2556"]
[Result "0-1"]
[Round "1"]
[TimeControl "180+2"]
[Date "2023.07.25"]
[WhiteClock "0:00:01"]
[BlackClock "0:00:28"]
[Board "211"]

1. c4 {[%clk 0:03:00]}  e5 {[%clk 0:02:59]} 2. Nc3 {[%clk 0:03:00]}  Nf6 {[%clk 0:02:53]} 3. Nf3 {[%clk 0:03:00]}  Nc6 {[%clk 0:02:53]} 4. e4 {[%clk 0:02:59]}  Bc5 {[%clk 0:02:49]} 5. Nxe5 {[%clk 0:02:58]}  Bxf2+ {[%clk 0:02:49]} 6. Kxf2 {[%clk 0:02:56]}  Nxe5 {[%clk 0:02:49]} 7. d4 {[%clk 0:02:55]}  Ng6 {[%clk 0:02:47]} 8. h4 {[%clk 0:02:40]}  h5 {[%clk 0:02:42]} 9. Bg5 {[%clk 0:02:36]}  d6 {[%clk 0:02:39]} 10. Nd5 {[%clk 0:02:24]}  Ng4+ {[%clk 0:02:38]} 11. Qxg4 {[%clk 0:02:15]}  Bxg4 {[%clk 0:02:34]} 12. Bxd8 {[%clk 0:02:14]}  Kxd8 {[%clk 0:02:33]} 13. Be2 {[%clk 0:02:13]}  Bxe2 {[%clk 0:02:31]} 14. Kxe2 {[%clk 0:02:14]}  Re8 {[%clk 0:02:28]} 15. Kf3 {[%clk 0:02:11]}  c6 {[%clk 0:02:27]} 16. Ne3 {[%clk 0:02:10]}  Kc7 {[%clk 0:02:23]} 17. Nf5 {[%clk 0:02:10]}  Rg8 {[%clk 0:02:22]} 18. g4 {[%clk 0:02:03]}  hxg4+ {[%clk 0:02:20]} 19. Kxg4 {[%clk 0:02:04]}  Nf8 {[%clk 0:02:16]} 20. Kf3 {[%clk 0:01:49]}  Re8 {[%clk 0:02:09]} 21. Rhg1 {[%clk 0:01:38]}  g6 {[%clk 0:02:04]} 22. Ne3 {[%clk 0:01:20]}  Rh8 {[%clk 0:02:03]} 23. Rh1 {[%clk 0:01:17]}  Ne6 {[%clk 0:02:01]} 24. Rad1 {[%clk 0:01:13]}  Ref8 {[%clk 0:01:32]} 25. d5 {[%clk 0:01:06]}  Ng7 {[%clk 0:01:25]} 26. Rdg1 {[%clk 0:00:54]}  Nh5 {[%clk 0:01:14]} 27. Rg5 {[%clk 0:00:45]}  Re8 {[%clk 0:01:10]} 28. Ng4 {[%clk 0:00:25]}  Rxe4 {[%clk 0:01:01]} 29. Kxe4 {[%clk 0:00:19]}  Ng3+ {[%clk 0:01:01]} 30. Kf3 {[%clk 0:00:18]}  Nxh1 {[%clk 0:00:58]} 31. h5 {[%clk 0:00:12]}  gxh5 {[%clk 0:00:51]} 32. Nf6 {[%clk 0:00:12]}  h4 {[%clk 0:00:44]} 33. Nh5 {[%clk 0:00:06]}  Ng3 {[%clk 0:00:38]} 34. Nxg3 {[%clk 0:00:06]}  hxg3 {[%clk 0:00:37]} 35. Rxg3 {[%clk 0:00:06]}  Kd7 {[%clk 0:00:36]} 36. Rg7 {[%clk 0:00:06]}  Ke7 {[%clk 0:00:35]} 37. dxc6 {[%clk 0:00:06]}  bxc6 {[%clk 0:00:35]} 38. Ke4 {[%clk 0:00:06]}  Rh2 {[%clk 0:00:34]} 39. b4 {[%clk 0:00:06]}  Rxa2 {[%clk 0:00:33]} 40. Rg8 {[%clk 0:00:06]}  Ra4 {[%clk 0:00:30]} 41. Rb8 {[%clk 0:00:06]}  a5 {[%clk 0:00:30]} 42. Rb7+ {[%clk 0:00:03]}  Ke6 {[%clk 0:00:30]} 43. bxa5 {[%clk 0:00:02]}  Rxc4+ {[%clk 0:00:30]} 44. Kd3 {[%clk 0:00:02]}  Ra4 {[%clk 0:00:30]} 45. Ra7 {[%clk 0:00:03]}  f5 {[%clk 0:00:29]} 46. a6 {[%clk 0:00:03]}  Kd5 {[%clk 0:00:29]} 47. Ra8 {[%clk 0:00:03]}  c5 {[%clk 0:00:29]} 48. a7 {[%clk 0:00:03]}  Ra3+ {[%clk 0:00:29]} 49. Kc2 {[%clk 0:00:03]}  f4 {[%clk 0:00:29]} 50. Kb2 {[%clk 0:00:04]}  Ra6 {[%clk 0:00:28]} 51. Kc2 {[%clk 0:00:03]}  f3 {[%clk 0:00:28]} 52. Kd3 {[%clk 0:00:04]}  Ra3+ {[%clk 0:00:28]} 53. Kd2 {[%clk 0:00:03]}  Kc4 {[%clk 0:00:28]} 54. Ke1 {[%clk 0:00:03]}  Ra2 {[%clk 0:00:28]} 55. Kf1 {[%clk 0:00:04]}  f2 {[%clk 0:00:27]} 56. Kg2 {[%clk 0:00:02]}  d5 {[%clk 0:00:27]} 57. Kf1 {[%clk 0:00:01]}  d4 {[%clk 0:00:28]} 0-1


[Site "https://www.chess.com"]

[Event "Titled Tuesday Blitz July 25 Early 2023"]
[White "Francisco_Ferrari"]
[Black "Banzea, Alexandru-Bogdan"]
[BlackFideId "1232622"]
[WhiteElo "2180"]
[BlackElo "2554"]
[Result "0-1"]
[Round "1"]
[TimeControl "180+2"]
[Date "2023.07.25"]
[WhiteClock "0:00:09"]
[BlackClock "0:00:06"]
[Board "213"]

1. c4 {[%clk 0:02:57]}  Nf6 {[%clk 0:02:59]} 2. Nc3 {[%clk 0:02:54]}  c5 {[%clk 0:02:59]} 3. Nf3 {[%clk 0:02:44]}  g6 {[%clk 0:03:00]} 4. d4 {[%clk 0:02:44]}  cxd4 {[%clk 0:03:00]} 5. Nxd4 {[%clk 0:02:44]}  Bg7 {[%clk 0:03:01]} 6. e4 {[%clk 0:02:44]}  O-O {[%clk 0:03:02]} 7. Be2 {[%clk 0:02:43]}  Nc6 {[%clk 0:03:02]} 8. Be3 {[%clk 0:02:42]}  d6 {[%clk 0:03:03]} 9. O-O {[%clk 0:02:36]}  Bd7 {[%clk 0:02:48]} 10. h3 {[%clk 0:02:33]}  Nxd4 {[%clk 0:02:47]} 11. Bxd4 {[%clk 0:02:34]}  Bc6 {[%clk 0:02:48]} 12. Qc2 {[%clk 0:02:30]}  Nd7 {[%clk 0:02:44]} 13. Bxg7 {[%clk 0:02:14]}  Kxg7 {[%clk 0:02:44]} 14. Rad1 {[%clk 0:02:13]}  Rc8 {[%clk 0:02:45]} 15. Bg4 {[%clk 0:02:08]}  Rc7 {[%clk 0:02:30]} 16. b3 {[%clk 0:01:46]}  a6 {[%clk 0:02:30]} 17. Qb2 {[%clk 0:01:42]}  Kg8 {[%clk 0:02:27]} 18. Bxd7 {[%clk 0:01:39]}  Rxd7 {[%clk 0:02:26]} 19. Nd5 {[%clk 0:01:39]}  Bxd5 {[%clk 0:02:11]} 20. exd5 {[%clk 0:01:37]}  e5 {[%clk 0:02:12]} 21. dxe6 {[%clk 0:01:35]}  fxe6 {[%clk 0:02:13]} 22. Rfe1 {[%clk 0:01:34]}  d5 {[%clk 0:02:04]} 23. Qd4 {[%clk 0:01:21]}  Rff7 {[%clk 0:02:02]} 24. cxd5 {[%clk 0:01:06]}  Rxd5 {[%clk 0:01:55]} 25. Qg4 {[%clk 0:01:06]}  Qb6 {[%clk 0:01:48]} 26. Rf1 {[%clk 0:00:50]}  Kg7 {[%clk 0:01:20]} 27. Qg3 {[%clk 0:00:37]}  Qd8 {[%clk 0:01:05]} 28. Qc3+ {[%clk 0:00:25]}  Rf6 {[%clk 0:01:05]} 29. Rde1 {[%clk 0:00:20]}  Qd6 {[%clk 0:00:58]} 30. Re3 {[%clk 0:00:16]}  Rd4 {[%clk 0:00:29]} 31. Rfe1 {[%clk 0:00:14]}  Qf4 {[%clk 0:00:12]} 32. Rf3 {[%clk 0:00:11]}  Qd2 {[%clk 0:00:12]} 33. Qc7+ {[%clk 0:00:09]}  Rd7 {[%clk 0:00:13]} 34. Qc3 {[%clk 0:00:06]}  Qxc3 {[%clk 0:00:07]} 35. Rxc3 {[%clk 0:00:07]}  Kf7 {[%clk 0:00:04]} 36. Rce3 {[%clk 0:00:04]}  Rd2 {[%clk 0:00:03]} 37. R1e2 {[%clk 0:00:05]}  Rxe2 {[%clk 0:00:03]} 38. Rxe2 {[%clk 0:00:06]}  Rf5 {[%clk 0:00:04]} 39. Kh2 {[%clk 0:00:07]}  Rc5 {[%clk 0:00:04]} 40. Kg3 {[%clk 0:00:07]}  Kf6 {[%clk 0:00:03]} 41. f3 {[%clk 0:00:08]}  Rc3 {[%clk 0:00:04]} 42. Re4 {[%clk 0:00:08]}  e5 {[%clk 0:00:04]} 43. Rb4 {[%clk 0:00:07]}  b5 {[%clk 0:00:04]} 44. a4 {[%clk 0:00:07]}  bxa4 {[%clk 0:00:05]} 45. bxa4 {[%clk 0:00:07]}  Ra3 {[%clk 0:00:05]} 46. Rb6+ {[%clk 0:00:07]}  Kf5 {[%clk 0:00:05]} 47. Rxa6 {[%clk 0:00:08]}  h5 {[%clk 0:00:06]} 48. Kf2 {[%clk 0:00:08]}  Ra2+ {[%clk 0:00:06]} 49. Kg1 {[%clk 0:00:09]}  g5 {[%clk 0:00:06]} 50. Kh2 {[%clk 0:00:09]}  h4 {[%clk 0:00:06]} 51. Kg1 {[%clk 0:00:09]}  Kf4 {[%clk 0:00:06]} 52. a5 {[%clk 0:00:10]}  Kg3 {[%clk 0:00:06]} 53. Ra8 {[%clk 0:00:09]}  Ra1# {[%clk 0:00:06]} 0-1


[Site "https://www.chess.com"]

[Event "Titled Tuesday Blitz July 25 Early 2023"]
[White "Andreev, Konstantin"]
[Black "Sankalan Shah"]
[WhiteFideId "24239305"]
[BlackFideId "25600362"]
[WhiteElo "2553"]
[BlackElo "2176"]
[Result "0-1"]
[Round "1"]
[TimeControl "180+2"]
[Date "2023.07.25"]
[WhiteClock "0:00:58"]
[BlackClock "0:00:16"]
[Board "216"]

1. e4 {[%clk 0:03:00]}  c5 {[%clk 0:02:59]} 2. Nf3 {[%clk 0:02:58]}  Nc6 {[%clk 0:02:58]} 3. Nc3 {[%clk 0:02:58]}  Nf6 {[%clk 0:02:58]} 4. d4 {[%clk 0:02:57]}  cxd4 {[%clk 0:02:57]} 5. Nxd4 {[%clk 0:02:58]}  e5 {[%clk 0:02:57]} 6. Ndb5 {[%clk 0:02:58]}  d6 {[%clk 0:02:56]} 7. Bg5 {[%clk 0:02:58]}  a6 {[%clk 0:02:56]} 8. Na3 {[%clk 0:02:58]}  b5 {[%clk 0:02:57]} 9. Bxf6 {[%clk 0:02:59]}  gxf6 {[%clk 0:02:56]} 10. Nd5 {[%clk 0:03:00]}  f5 {[%clk 0:02:55]} 11. Bd3 {[%clk 0:02:59]}  Be6 {[%clk 0:02:52]} 12. O-O {[%clk 0:02:58]}  Rg8 {[%clk 0:02:46]} 13. Kh1 {[%clk 0:02:55]}  Bxd5 {[%clk 0:02:31]} 14. exd5 {[%clk 0:02:56]}  Ne7 {[%clk 0:02:31]} 15. Nxb5 {[%clk 0:02:55]}  Qb6 {[%clk 0:02:05]} 16. Nc3 {[%clk 0:02:49]}  Qxb2 {[%clk 0:01:47]} 17. Qd2 {[%clk 0:02:39]}  Rc8 {[%clk 0:01:39]} 18. Ne2 {[%clk 0:02:20]}  Qa3 {[%clk 0:01:33]} 19. Rab1 {[%clk 0:01:54]}  e4 {[%clk 0:01:31]} 20. Rb3 {[%clk 0:01:54]}  Qxa2 {[%clk 0:01:22]} 21. Nc1 {[%clk 0:01:31]}  Qa4 {[%clk 0:00:56]} 22. Be2 {[%clk 0:01:31]}  Rg6 {[%clk 0:00:38]} 23. f4 {[%clk 0:01:12]}  exf3 {[%clk 0:00:29]} 24. Rfxf3 {[%clk 0:01:07]}  Bh6 {[%clk 0:00:29]} 25. Qd1 {[%clk 0:01:05]}  Qa1 {[%clk 0:00:24]} 26. Rf1 {[%clk 0:01:01]}  Bxc1 {[%clk 0:00:21]} 27. Qxc1 {[%clk 0:01:02]}  Qxc1 {[%clk 0:00:20]} 28. Rd1 {[%clk 0:01:03]}  Qxc2 {[%clk 0:00:19]} 29. Re3 {[%clk 0:00:58]}  Kf8 {[%clk 0:00:17]} 30. Rf1 {[%clk 0:00:58]}  Rc3 {[%clk 0:00:16]} 0-1


[Site "https://www.chess.com"]

[Event "Titled Tuesday Blitz July 25 Early 2023"]
[White "Luxama, Jacques Muller"]
[Black "Bilan, Danila"]
[WhiteFideId "11900113"]
[BlackFideId "24161918"]
[WhiteElo "2164"]
[BlackElo "2549"]
[Result "1-0"]
[Round "1"]
[TimeControl "180+2"]
[Date "2023.07.25"]
[WhiteClock "0:01:51"]
[BlackClock "0:00:02"]
[Board "219"]

1. e4 {[%clk 0:03:00]}  c6 {[%clk 0:02:54]} 2. d4 {[%clk 0:03:00]}  d5 {[%clk 0:02:55]} 3. Nc3 {[%clk 0:03:00]}  dxe4 {[%clk 0:02:54]} 4. Nxe4 {[%clk 0:03:01]}  Bf5 {[%clk 0:02:54]} 5. Ng3 {[%clk 0:03:01]}  Bg6 {[%clk 0:02:53]} 6. Nf3 {[%clk 0:03:01]}  Nd7 {[%clk 0:02:53]} 7. h4 {[%clk 0:03:02]}  h6 {[%clk 0:02:53]} 8. h5 {[%clk 0:03:02]}  Bh7 {[%clk 0:02:54]} 9. Bd3 {[%clk 0:03:03]}  Bxd3 {[%clk 0:02:55]} 10. Qxd3 {[%clk 0:03:04]}  Qc7 {[%clk 0:02:55]} 11. Bd2 {[%clk 0:03:03]}  e6 {[%clk 0:02:55]} 12. O-O-O {[%clk 0:03:02]}  Bd6 {[%clk 0:02:56]} 13. Ne4 {[%clk 0:03:01]}  Ngf6 {[%clk 0:02:57]} 14. Nxd6+ {[%clk 0:03:00]}  Qxd6 {[%clk 0:02:57]} 15. Kb1 {[%clk 0:03:00]}  Qd5 {[%clk 0:02:57]} 16. Qe2 {[%clk 0:02:43]}  b5 {[%clk 0:02:40]} 17. Ne5 {[%clk 0:02:42]}  Ne4 {[%clk 0:02:24]} 18. Nxd7 {[%clk 0:02:38]}  Kxd7 {[%clk 0:01:57]} 19. Bc1 {[%clk 0:02:35]}  a5 {[%clk 0:01:53]} 20. Rh4 {[%clk 0:02:35]}  Nd6 {[%clk 0:01:42]} 21. Qg4 {[%clk 0:02:30]}  Rhg8 {[%clk 0:01:33]} 22. Rhh1 {[%clk 0:02:27]}  a4 {[%clk 0:01:28]} 23. Bf4 {[%clk 0:02:18]}  Nc4 {[%clk 0:01:13]} 24. Bc1 {[%clk 0:02:15]}  b4 {[%clk 0:01:04]} 25. Rhe1 {[%clk 0:02:13]}  Rab8 {[%clk 0:00:45]} 26. b3 {[%clk 0:02:10]}  axb3 {[%clk 0:00:35]} 27. axb3 {[%clk 0:02:07]}  Na3+ {[%clk 0:00:34]} 28. Bxa3 {[%clk 0:02:06]}  bxa3 {[%clk 0:00:35]} 29. Re5 {[%clk 0:02:04]}  Qd6 {[%clk 0:00:11]} 30. Ra5 {[%clk 0:02:04]}  Ra8 {[%clk 0:00:06]} 31. Rxa8 {[%clk 0:02:00]}  Rxa8 {[%clk 0:00:07]} 32. Qxg7 {[%clk 0:02:00]}  a2+ {[%clk 0:00:07]} 33. Ka1 {[%clk 0:02:00]}  Ke7 {[%clk 0:00:05]} 34. Qxh6 {[%clk 0:01:59]}  Qb4 {[%clk 0:00:04]} 35. Qg5+ {[%clk 0:01:59]}  Kd7 {[%clk 0:00:03]} 36. Qd2 {[%clk 0:01:57]}  Qb5 {[%clk 0:00:03]} 37. Qf4 {[%clk 0:01:54]}  Qxh5 {[%clk 0:00:02]} 38. Qxf7+ {[%clk 0:01:52]}  Kd6 {[%clk 0:00:02]} 39. Qxh5 {[%clk 0:01:51]} 1-0


[Site "https://www.chess.com"]

[Event "Titled Tuesday Blitz July 25 Early 2023"]
[White "Souleidis, Georgios"]
[Black "Lisjak, Zlatko"]
[WhiteFideId "4206827"]
[BlackFideId "14502186"]
[WhiteElo "2544"]
[BlackElo "2130"]
[Result "1-0"]
[Round "1"]
[TimeControl "180+2"]
[Date "2023.07.25"]
[WhiteClock "0:01:47"]
[BlackClock "0:00:01"]
[Board "224"]

1. e4 {[%clk 0:02:58]}  d6 {[%clk 0:02:58]} 2. d4 {[%clk 0:02:57]}  Nf6 {[%clk 0:02:59]} 3. Nc3 {[%clk 0:02:56]}  c6 {[%clk 0:02:59]} 4. f4 {[%clk 0:02:53]}  Qa5 {[%clk 0:02:58]} 5. Bd3 {[%clk 0:02:51]}  e5 {[%clk 0:02:57]} 6. Nf3 {[%clk 0:02:51]}  Nbd7 {[%clk 0:02:56]} 7. O-O {[%clk 0:02:38]}  Be7 {[%clk 0:02:53]} 8. Kh1 {[%clk 0:02:36]}  O-O {[%clk 0:02:51]} 9. Qe1 {[%clk 0:02:21]}  Qc7 {[%clk 0:02:50]} 10. a4 {[%clk 0:02:13]}  b6 {[%clk 0:02:41]} 11. dxe5 {[%clk 0:02:03]}  dxe5 {[%clk 0:02:40]} 12. fxe5 {[%clk 0:01:55]}  Nxe5 {[%clk 0:02:25]} 13. Nxe5 {[%clk 0:01:56]}  Qxe5 {[%clk 0:02:23]} 14. Bf4 {[%clk 0:01:57]}  Qf5 {[%clk 0:02:03]} 15. exf5 {[%clk 0:01:55]}  Re8 {[%clk 0:00:04]} 16. h3 {[%clk 0:01:49]}  Bd7 {[%clk 0:00:02]} 17. Qf2 {[%clk 0:01:49]}  Bc5 {[%clk 0:00:01]} 18. Qf3 {[%clk 0:01:47]} 1-0


[Site "https://www.chess.com"]

[Event "Titled Tuesday Blitz July 25 Early 2023"]
[White "Hrescak, Ivana"]
[Black "Gontcharov, Vladislav"]
[WhiteFideId "14613441"]
[BlackFideId "4123492"]
[WhiteElo "2129"]
[BlackElo "2544"]
[Result "1/2-1/2"]
[Round "1"]
[TimeControl "180+2"]
[Date "2023.07.25"]
[WhiteClock "0:00:06"]
[BlackClock "0:00:01"]
[Board "225"]

1. e4 {[%clk 0:03:00]}  e6 {[%clk 0:02:59]} 2. d4 {[%clk 0:03:00]}  d5 {[%clk 0:02:59]} 3. Nc3 {[%clk 0:02:59]}  Bb4 {[%clk 0:02:58]} 4. e5 {[%clk 0:02:59]}  Qd7 {[%clk 0:02:50]} 5. Qg4 {[%clk 0:02:56]}  Bf8 {[%clk 0:02:48]} 6. f4 {[%clk 0:02:49]}  b6 {[%clk 0:02:45]} 7. Nf3 {[%clk 0:02:49]}  Ba6 {[%clk 0:02:45]} 8. Be3 {[%clk 0:02:41]}  Bxf1 {[%clk 0:02:39]} 9. Rxf1 {[%clk 0:02:40]}  Nh6 {[%clk 0:02:09]} 10. Qh3 {[%clk 0:02:31]}  Nf5 {[%clk 0:02:09]} 11. Bg1 {[%clk 0:02:29]}  c5 {[%clk 0:02:08]} 12. g4 {[%clk 0:02:20]}  Nxd4 {[%clk 0:02:07]} 13. Bxd4 {[%clk 0:02:18]}  cxd4 {[%clk 0:02:07]} 14. Nxd4 {[%clk 0:02:19]}  Nc6 {[%clk 0:02:06]} 15. O-O-O {[%clk 0:02:12]}  Nxd4 {[%clk 0:02:00]} 16. Rxd4 {[%clk 0:02:12]}  O-O-O {[%clk 0:01:28]} 17. Rfd1 {[%clk 0:01:33]}  h5 {[%clk 0:01:10]} 18. g5 {[%clk 0:01:25]}  Kb8 {[%clk 0:00:59]} 19. Qd3 {[%clk 0:01:19]}  Bc5 {[%clk 0:00:54]} 20. Ra4 {[%clk 0:01:00]}  Qc6 {[%clk 0:00:41]} 21. Qa6 {[%clk 0:00:50]}  Rd7 {[%clk 0:00:38]} 22. Nb5 {[%clk 0:00:39]}  Qb7 {[%clk 0:00:26]} 23. Qxb7+ {[%clk 0:00:36]}  Rxb7 {[%clk 0:00:27]} 24. c4 {[%clk 0:00:29]}  dxc4 {[%clk 0:00:22]} 25. Rxc4 {[%clk 0:00:29]}  Rc8 {[%clk 0:00:20]} 26. Kb1 {[%clk 0:00:22]}  a6 {[%clk 0:00:17]} 27. Nd6 {[%clk 0:00:20]}  Bxd6 {[%clk 0:00:17]} 28. Rxc8+ {[%clk 0:00:21]}  Kxc8 {[%clk 0:00:18]} 29. Rxd6 {[%clk 0:00:20]}  Rd7 {[%clk 0:00:14]} 30. Rxb6 {[%clk 0:00:20]}  Rd4 {[%clk 0:00:13]} 31. Rxa6 {[%clk 0:00:19]}  Rxf4 {[%clk 0:00:14]} 32. Ra7 {[%clk 0:00:20]}  g6 {[%clk 0:00:12]} 33. a4 {[%clk 0:00:19]}  h4 {[%clk 0:00:12]} 34. a5 {[%clk 0:00:19]}  h3 {[%clk 0:00:13]} 35. a6 {[%clk 0:00:19]}  Kb8 {[%clk 0:00:13]} 36. Rb7+ {[%clk 0:00:19]}  Ka8 {[%clk 0:00:14]} 37. b4 {[%clk 0:00:19]}  Rf5 {[%clk 0:00:12]} 38. b5 {[%clk 0:00:19]}  Rxe5 {[%clk 0:00:13]} 39. b6 {[%clk 0:00:18]}  Rxg5 {[%clk 0:00:13]} 40. Rxf7 {[%clk 0:00:17]}  Rb5+ {[%clk 0:00:13]} 41. Kc2 {[%clk 0:00:17]}  Rxb6 {[%clk 0:00:14]} 42. Rh7 {[%clk 0:00:13]}  Rxa6 {[%clk 0:00:12]} 43. Rxh3 {[%clk 0:00:13]}  g5 {[%clk 0:00:13]} 44. Rg3 {[%clk 0:00:13]}  Ra2+ {[%clk 0:00:12]} 45. Kd3 {[%clk 0:00:13]}  Ra5 {[%clk 0:00:08]} 46. Re3 {[%clk 0:00:08]}  Ra6 {[%clk 0:00:07]} 47. Ke4 {[%clk 0:00:07]}  Kb7 {[%clk 0:00:06]} 48. Ke5 {[%clk 0:00:07]}  Kc7 {[%clk 0:00:05]} 49. Rg3 {[%clk 0:00:08]}  Ra5+ {[%clk 0:00:03]} 50. Kxe6 {[%clk 0:00:07]}  Ra2 {[%clk 0:00:01]} 51. Rxg5 {[%clk 0:00:07]}  Rxh2 {[%clk 0:00:01]} 52. Rg7+ {[%clk 0:00:07]}  Kb6 {[%clk 0:00:02]} 53. Rg6 {[%clk 0:00:07]}  Kc5 {[%clk 0:00:01]} 54. Kf5 {[%clk 0:00:06]} 1/2-1/2


[Site "https://www.chess.com"]

[Event "Titled Tuesday Blitz July 25 Early 2023"]
[White "Goffredo_Fofi"]
[Black "Dahlgren, James Allen"]
[BlackFideId "22256873"]
[WhiteElo "2543"]
[BlackElo "2117"]
[Result "1-0"]
[Round "1"]
[TimeControl "180+2"]
[Date "2023.07.25"]
[WhiteClock "0:01:37"]
[BlackClock "0:01:48"]
[Board "226"]

1. d4 {[%clk 0:03:00]}  e6 {[%clk 0:02:57]} 2. Nf3 {[%clk 0:02:58]}  c5 {[%clk 0:02:58]} 3. c3 {[%clk 0:02:57]}  Nf6 {[%clk 0:02:59]} 4. Bg5 {[%clk 0:02:56]}  d5 {[%clk 0:02:57]} 5. Nbd2 {[%clk 0:02:55]}  Be7 {[%clk 0:02:55]} 6. e3 {[%clk 0:02:55]}  Nc6 {[%clk 0:02:46]} 7. Bd3 {[%clk 0:02:54]}  h6 {[%clk 0:02:45]} 8. Bf4 {[%clk 0:02:53]}  O-O {[%clk 0:02:44]} 9. Ne5 {[%clk 0:02:43]}  Bd7 {[%clk 0:02:41]} 10. h4 {[%clk 0:02:27]}  Nxe5 {[%clk 0:02:38]} 11. dxe5 {[%clk 0:02:27]}  Nh7 {[%clk 0:02:32]} 12. Qc2 {[%clk 0:02:19]}  f5 {[%clk 0:02:31]} 13. exf6 {[%clk 0:02:12]}  Nxf6 {[%clk 0:02:30]} 14. Nf3 {[%clk 0:02:07]}  b5 {[%clk 0:02:28]} 15. Ne5 {[%clk 0:02:02]}  c4 {[%clk 0:02:27]} 16. Bg6 {[%clk 0:02:02]}  Be8 {[%clk 0:02:28]} 17. g4 {[%clk 0:01:46]}  Bxg6 {[%clk 0:02:18]} 18. Qxg6 {[%clk 0:01:47]}  Qe8 {[%clk 0:02:15]} 19. g5 {[%clk 0:01:42]}  hxg5 {[%clk 0:02:04]} 20. hxg5 {[%clk 0:01:37]}  Qxg6 {[%clk 0:01:54]} 21. Nxg6 {[%clk 0:01:38]}  Rfe8 {[%clk 0:01:48]} 22. Nxe7+ {[%clk 0:01:37]}  Rxe7 {[%clk 0:01:48]} 23. gxf6 {[%clk 0:01:38]}  gxf6 {[%clk 0:01:48]} 24. Ke2 {[%clk 0:01:37]} 1-0


[Site "https://www.chess.com"]

[Event "Titled Tuesday Blitz July 25 Early 2023"]
[White "Schlecht, Daniel, Dr."]
[Black "Larina, Maria"]
[WhiteFideId "4623959"]
[BlackFideId "24113182"]
[WhiteElo "2532"]
[BlackElo "2104"]
[Result "0-1"]
[Round "1"]
[TimeControl "180+2"]
[Date "2023.07.25"]
[WhiteClock "0:00:38"]
[BlackClock "0:00:18"]
[Board "230"]

1. Nf3 {[%clk 0:02:57]}  f5 {[%clk 0:02:59]} 2. d4 {[%clk 0:02:57]}  d6 {[%clk 0:02:59]} 3. g3 {[%clk 0:02:57]}  Nf6 {[%clk 0:02:59]} 4. Bg2 {[%clk 0:02:57]}  g6 {[%clk 0:02:59]} 5. O-O {[%clk 0:02:57]}  Bg7 {[%clk 0:03:00]} 6. c4 {[%clk 0:02:57]}  O-O {[%clk 0:03:00]} 7. Nc3 {[%clk 0:02:57]}  Nc6 {[%clk 0:03:00]} 8. d5 {[%clk 0:02:57]}  Na5 {[%clk 0:03:01]} 9. Qa4 {[%clk 0:02:56]}  c5 {[%clk 0:02:56]} 10. dxc6 {[%clk 0:02:56]}  Nxc6 {[%clk 0:02:54]} 11. Rd1 {[%clk 0:02:51]}  Bd7 {[%clk 0:02:49]} 12. Qc2 {[%clk 0:02:45]}  Rc8 {[%clk 0:02:44]} 13. b3 {[%clk 0:02:45]}  Ne4 {[%clk 0:02:38]} 14. Bb2 {[%clk 0:02:45]}  Nb4 {[%clk 0:02:37]} 15. Qc1 {[%clk 0:02:41]}  Bc6 {[%clk 0:02:22]} 16. a3 {[%clk 0:02:37]}  Qb6 {[%clk 0:02:06]} 17. e3 {[%clk 0:02:31]}  Na6 {[%clk 0:02:00]} 18. b4 {[%clk 0:02:30]}  Nxc3 {[%clk 0:01:50]} 19. Bxc3 {[%clk 0:02:30]}  Bxc3 {[%clk 0:01:51]} 20. Qxc3 {[%clk 0:02:30]}  Ba4 {[%clk 0:01:52]} 21. Rdc1 {[%clk 0:02:24]}  e5 {[%clk 0:01:46]} 22. Ng5 {[%clk 0:02:13]}  Nc7 {[%clk 0:01:35]} 23. f4 {[%clk 0:02:10]}  e4 {[%clk 0:01:25]} 24. Qd2 {[%clk 0:01:51]}  h6 {[%clk 0:01:19]} 25. Nh3 {[%clk 0:01:51]}  Rfd8 {[%clk 0:01:06]} 26. Nf2 {[%clk 0:01:50]}  d5 {[%clk 0:01:04]} 27. c5 {[%clk 0:01:50]}  Qf6 {[%clk 0:01:02]} 28. g4 {[%clk 0:01:39]}  d4 {[%clk 0:01:01]} 29. gxf5 {[%clk 0:01:39]}  gxf5 {[%clk 0:00:58]} 30. exd4 {[%clk 0:01:39]}  Rxd4 {[%clk 0:00:57]} 31. Qe3 {[%clk 0:01:39]}  Rcd8 {[%clk 0:00:54]} 32. Kh1 {[%clk 0:01:31]}  Kh7 {[%clk 0:00:47]} 33. Rg1 {[%clk 0:01:31]}  Nd5 {[%clk 0:00:43]} 34. Qc1 {[%clk 0:01:18]}  e3 {[%clk 0:00:33]} 35. Nh3 {[%clk 0:01:10]}  Bc6 {[%clk 0:00:30]} 36. Qe1 {[%clk 0:01:07]}  Rd2 {[%clk 0:00:23]} 37. Qg3 {[%clk 0:00:58]}  Rg8 {[%clk 0:00:22]} 38. Qxg8+ {[%clk 0:00:38]}  Kxg8 {[%clk 0:00:20]} 39. Bxd5+ {[%clk 0:00:38]}  Kh7 {[%clk 0:00:18]} 0-1


[Site "https://www.chess.com"]

[Event "Titled Tuesday Blitz July 25 Early 2023"]
[White "Jaivardhan Raj"]
[Black "Suder, Jakub"]
[WhiteFideId "25744437"]
[BlackFideId "1195310"]
[WhiteElo "2100"]
[BlackElo "2532"]
[Result "0-1"]
[Round "1"]
[TimeControl "180+2"]
[Date "2023.07.25"]
[WhiteClock "0:02:15"]
[BlackClock "0:01:33"]
[Board "231"]

1. g3 {[%clk 0:03:00]}  d5 {[%clk 0:02:59]} 2. Bg2 {[%clk 0:03:01]}  Nf6 {[%clk 0:02:59]} 3. b3 {[%clk 0:03:02]}  e6 {[%clk 0:02:59]} 4. Bb2 {[%clk 0:03:03]}  Be7 {[%clk 0:03:00]} 5. d3 {[%clk 0:03:03]}  O-O {[%clk 0:03:00]} 6. Nd2 {[%clk 0:03:04]}  a5 {[%clk 0:03:00]} 7. a4 {[%clk 0:03:03]}  b6 {[%clk 0:02:59]} 8. e3 {[%clk 0:03:03]}  Bb7 {[%clk 0:02:59]} 9. Ne2 {[%clk 0:03:04]}  Nbd7 {[%clk 0:02:57]} 10. O-O {[%clk 0:03:04]}  Re8 {[%clk 0:02:55]} 11. c4 {[%clk 0:03:04]}  Nc5 {[%clk 0:02:52]} 12. d4 {[%clk 0:03:02]}  Nce4 {[%clk 0:02:51]} 13. Nxe4 {[%clk 0:03:02]}  Nxe4 {[%clk 0:02:51]} 14. Nc3 {[%clk 0:03:01]}  f5 {[%clk 0:02:44]} 15. Nxe4 {[%clk 0:03:00]}  dxe4 {[%clk 0:02:42]} 16. g4 {[%clk 0:02:54]}  Bd6 {[%clk 0:02:35]} 17. gxf5 {[%clk 0:02:53]}  exf5 {[%clk 0:02:31]} 18. d5 {[%clk 0:02:43]}  Qh4 {[%clk 0:02:25]} 19. h3 {[%clk 0:02:43]}  f4 {[%clk 0:02:24]} 20. Qg4 {[%clk 0:02:40]}  Qxg4 {[%clk 0:02:21]} 21. hxg4 {[%clk 0:02:41]}  f3 {[%clk 0:02:21]} 22. Bh3 {[%clk 0:02:41]}  Bc8 {[%clk 0:02:09]} 23. Rfd1 {[%clk 0:02:36]}  h5 {[%clk 0:02:06]} 24. Ba3 {[%clk 0:02:28]}  hxg4 {[%clk 0:02:01]} 25. Bf1 {[%clk 0:02:27]}  Bf5 {[%clk 0:01:56]} 26. c5 {[%clk 0:02:23]}  bxc5 {[%clk 0:01:50]} 27. Rac1 {[%clk 0:02:24]}  g3 {[%clk 0:01:44]} 28. Bxc5 {[%clk 0:02:21]}  g2 {[%clk 0:01:40]} 29. Bb5 {[%clk 0:02:20]}  Red8 {[%clk 0:01:35]} 30. Bxd6 {[%clk 0:02:19]}  Rxd6 {[%clk 0:01:35]} 31. Rxc7 {[%clk 0:02:15]}  Rh6 {[%clk 0:01:33]} 0-1


[Site "https://www.chess.com"]